fUSD/lending_fUSD_20250930
["ID","MTS","AMOUNT","RATE_DAILY","PERIOD"]
[388590220,1759246319264,-1425.66,0.0002,2]
[388590221,1759246319273,-500.0,0.0002,2]
[388590222,1759246319282,-2804.96,0.0002,2]
[388590223,1759246319292,-500.0,0.0002,2]
[388590224,1759246319301,-500.0,0.0002,2]
[388590225,1759246319311,-5000.76,0.0002,2]
[388590226,1759246319321,-4140.16,0.0002,2]
[388590227,1759246319337,-500.0,0.0002,2]
[388590228,1759246319346,-2903.65,0.0002,2]
[388590229,1759246319355,-6133.19,0.0002,2]
[388590230,1759246319366,-500.0,0.0002,2]
[388590231,1759246319375,-480.18932218,0.0002,2]
[388590232,1759246319384,-1010.14,0.0002,2]
[388590233,1759246319394,-892.39,0.0002,2]
[388590234,1759246319404,-2702.09,0.0002,2]
[388590235,1759246319413,-500.0,0.0002,2]
[388590236,1759246319422,-513.53,0.0002,2]
[388590237,1759246319431,-500.0,0.0002,2]
[388590238,1759246319441,-6441.18,0.0002,2]
[388590239,1759246319450,-648.01648286,0.0002,2]
[388590240,1759246319459,-2084.7,0.0002,2]
[388590241,1759246319469,-662.84,0.0002,2]
[388590242,1759246319479,-500.0,0.0002,2]
[388590243,1759246319488,-500.0,0.0002,2]
[388590244,1759246319497,-4145.47,0.0002,2]
[388590245,1759246319506,-502.53,0.0002,2]
[388590246,1759246319515,-500.0,0.0002,2]
[388590247,1759246319524,-644.16063399,0.0002,2]
[388590248,1759246319533,-500.0,0.0002,2]
[388590249,1759246319543,-1231.78,0.0002,2]
[388590250,1759246319552,-1440.69,0.0002,2]
[388590251,1759246319561,-1427.41,0.0002,2]
[388590252,1759246319570,-975.41,0.0002,2]
[388590253,1759246319580,-4628.6,0.0002,2]
[388590254,1759246319590,-111661.04752769,0.0002,2]
[388590255,1759246319599,-500.0,0.0002,2]
[388590256,1759246319608,-780.52,0.0002,2]
[388590257,1759246319620,-7132.82,0.0002,2]
[388590258,1759246319629,-3701.62,0.0002,2]
[388590259,1759246319639,-922.72,0.0002,2]
[388590260,1759246319647,-946.46,0.0002,2]
[388590261,1759246319657,-500.0,0.0002,2]
[388590262,1759246319666,-586.36,0.0002,2]
[388590263,1759246319676,-7280.81,0.0002,2]
[388590264,1759246319685,-4142.74,0.0002,2]
[388590265,1759246319695,-2939.28,0.0002,2]
[388590266,1759246319705,-500.0,0.0002,2]
[388590267,1759246319714,-500.0,0.0002,2]
[388590268,1759246319724,-702.81,0.0002,2]
[388590269,1759246319734,-1558.38,0.0002,2]
[388590270,1759246319744,-2021.57,0.0002,2]
[388590271,1759246319754,-500.0,0.0002,2]
[388590272,1759246319763,-620.09,0.0002,2]
[388590273,1759246319773,-500.0,0.0002,2]
[388590274,1759246319782,-8333.2,0.0002,2]
[388590275,1759246319791,-500.0,0.0002,2]
[388590276,1759246319800,-500.0,0.0002,2]
[388590277,1759246319809,-500.0,0.0002,2]
[388590278,1759246319818,-500.0,0.0002,2]
[388590279,1759246319827,-1290.06,0.0002,2]
[388590280,1759246319836,-1413.35,0.0002,2]
[388590281,1759246319846,-500.0,0.0002,2]
[388590282,1759246319856,-500.0,0.0002,2]
[388590283,1759246319866,-2791.8,0.0002,2]
[388590284,1759246319876,-500.0,0.0002,2]
[388590285,1759246319885,-500.0,0.0002,2]
[388590286,1759246319894,-3747.25,0.0002,2]
[388590287,1759246319904,-500.0,0.0002,2]
[388590288,1759246319913,-6199.04,0.0002,2]
[388590289,1759246319923,-687.98,0.0002,2]
[388590290,1759246319932,-752.74,0.0002,2]
[388590291,1759246319941,-1798.24,0.0002,2]
[388590292,1759246319951,-1708.53,0.0002,2]
[388590293,1759246319960,-500.0,0.0002,2]
[388590294,1759246319969,-3361.19,0.0002,2]
[388590295,1759246319979,-500.0,0.0002,2]
[388590296,1759246319989,-500.0,0.0002,2]
[388590297,1759246319999,-576.77,0.0002,2]
[388590298,1759246320008,-500.0,0.0002,2]
[388590299,1759246320018,-500.0,0.0002,2]
[388590300,1759246320028,-500.0,0.0002,2]
[388590301,1759246320037,-719.14,0.0002,2]
[388590302,1759246320047,-684.76,0.0002,2]
[388590303,1759246320058,-500.0,0.0002,2]
[388590304,1759246320068,-3484.23,0.0002,2]
[388590305,1759246320078,-199.28938744,0.0002,2]
[388590306,1759246320087,-4386.1,0.0002,2]
[388590307,1759246320097,-1012.78,0.0002,2]
[388590308,1759246320106,-1129.62,0.0002,2]
[388590309,1759246320117,-3268.3,0.0002,2]
[388590310,1759246320126,-500.0,0.0002,2]
[388590311,1759246320135,-1966.37,0.0002,2]
[388590312,1759246320145,-150.0,0.0002,2]
[388590313,1759246320154,-1137.08,0.0002,2]
[388590314,1759246320163,-2918.5,0.0002,2]
[388590315,1759246320172,-5069.85,0.0002,2]
[388590316,1759246320182,-500.0,0.0002,2]
[388590317,1759246320191,-503.17,0.0002,2]
[388590318,1759246320201,-804.09,0.0002,2]
[388590319,1759246320210,-530.92,0.0002,2]
[388590320,1759246320219,-500.0,0.0002,2]
[388590321,1759246320228,-1003.96,0.0002,2]
[388590322,1759246320238,-5981.35,0.0002,2]
[388590323,1759246320248,-667.15,0.0002,2]
[388590324,1759246320257,-639.36,0.0002,2]
[388590325,1759246320266,-5078.73,0.0002,2]
[388590326,1759246320275,-500.0,0.0002,2]
[388590327,1759246320284,-863.01,0.0002,2]
[388590328,1759246320294,-548.22,0.0002,2]
[388590329,1759246320303,-500.0,0.0002,2]
[388590330,1759246320312,-500.0,0.0002,2]
[388590331,1759246320322,-500.0,0.0002,2]
[388590332,1759246320337,-1631.64,0.0002,2]
[388590333,1759246320347,-879.91,0.0002,2]
[388590334,1759246320357,-500.0,0.0002,2]
[388590335,1759246320368,-500.0,0.0002,2]
[388590336,1759246320377,-738.4,0.0002,2]
[388590337,1759246320388,-987.15,0.0002,2]
[388590338,1759246320397,-516.47,0.0002,2]
[388590339,1759246320408,-500.0,0.0002,2]
[388590340,1759246320418,-1145.74,0.0002,2]
[388590341,1759246320427,-2417.52,0.0002,2]
[388590342,1759246320437,-500.0,0.0002,2]
[388590343,1759246320447,-4324.35,0.0002,2]
[388590344,1759246320457,-500.0,0.0002,2]
[388590345,1759246320467,-2216.75,0.0002,2]
[388590346,1759246320476,-500.0,0.0002,2]
[388590347,1759246320486,-1316.97,0.0002,2]
[388590348,1759246320495,-2883.78,0.0002,2]
[388590349,1759246320505,-710.32,0.0002,2]
[388590350,1759246320515,-1309.93,0.0002,2]
[388590351,1759246320525,-3232.3,0.0002,2]
[388590352,1759246320534,-474.52590314,0.0002,3]
[388590353,1759246320544,-500.0,0.0002,2]
[388590354,1759246320554,-854.016185,0.0002,2]
[388590355,1759246320564,-2655.39,0.0002,2]
[388590356,1759246320574,-500.0,0.0002,2]
[388590357,1759246320583,-676.19,0.0002,2]
[388590358,1759246320593,-694.45,0.0002,2]
[388590359,1759246320603,-6192.86,0.0002,2]
[388590360,1759246320612,-4141.47,0.0002,2]
[388590361,1759246320624,-782.21,0.0002,2]
[388590362,1759246320634,-500.0,0.0002,2]
[388590363,1759246320644,-2331.34,0.0002,2]
[388590364,1759246320654,-500.0,0.0002,2]
[388590365,1759246320664,-1285.52,0.0002,2]
[388590366,1759246320674,-731.087657,0.0002,2]
[388590367,1759246320683,-4420.41,0.0002,2]
[388590368,1759246320692,-500.0,0.0002,2]
[388590369,1759246320701,-600.48,0.0002,2]
[388590370,1759246320711,-4081.83,0.0002,2]
[388590371,1759246320720,-500.0,0.0002,2]
[388590372,1759246320729,-500.0,0.0002,2]
[388590373,1759246320739,-500.0,0.0002,2]
[388590374,1759246320749,-2307.17,0.0002,2]
[388590375,1759246320759,-331.63987656,0.0002,2]
[388590376,1759246320770,-500.0,0.0002,2]
[388590377,1759246320781,-500.0,0.0002,2]
[388590378,1759246320791,-17236.64,0.0002,2]
[388590379,1759246320802,-2469.04,0.0002,2]
[388590380,1759246320812,-500.0,0.0002,2]
[388590381,1759246320822,-262.85,0.0002,2]
[388590382,1759246320832,-2029.55,0.0002,2]
[388590383,1759246320843,-225.05,0.0002,2]
[388590384,1759246320855,-500.0,0.0002,2]
[388590385,1759246320867,-1123.53,0.0002,2]
[388590386,1759246320876,-219.6651494,0.0002,2]
[388590387,1759246320886,-3068.64,0.0002,2]
[388590388,1759246320895,-582.51,0.0002,2]
[388590389,1759246320905,-500.0,0.0002,2]
[388590390,1759246320915,-500.0,0.0002,2]
[388590391,1759246320924,-5035.91,0.0002,2]
[388590392,1759246320934,-535.69,0.0002,2]
[388590393,1759246320943,-803.1,0.0002,2]
[388590394,1759246320954,-2776.79,0.0002,2]
[388590395,1759246320963,-599.02,0.0002,2]
[388590396,1759246320972,-589.87,0.0002,2]
[388590397,1759246320982,-500.0,0.0002,2]
[388590398,1759246320991,-5539.46,0.0002,2]
[388590399,1759246321000,-500.0,0.0002,2]
[388590400,1759246321010,-500.0,0.0002,2]
[388590401,1759246321020,-1990.07,0.0002,2]
[388590402,1759246321030,-3720.94,0.0002,2]
[388590403,1759246321039,-1323.14,0.0002,2]
[388590404,1759246321049,-770.21,0.0002,2]
[388590405,1759246321058,-842.76,0.0002,2]
[388590406,1759246321067,-3292.83,0.0002,2]
[388590407,1759246321076,-3895.89,0.0002,2]
[388590408,1759246321085,-622.5,0.0002,2]
[388590409,1759246321095,-3647.21,0.0002,2]
[388590410,1759246321104,-787.38,0.0002,2]
[388590411,1759246321113,-500.0,0.0002,2]
[388590412,1759246321124,-500.0,0.0002,2]
[388590413,1759246321134,-1562.64,0.0002,2]
[388590414,1759246321143,-679.72,0.0002,2]
[388590415,1759246321153,-614.02,0.0002,2]
[388590416,1759246321162,-500.0,0.0002,2]
[388590417,1759246321171,-12282.2,0.0002,2]
[388590418,1759246321180,-500.0,0.0002,2]
[388590419,1759246321190,-500.0,0.0002,2]
[388590420,1759246321199,-646.09,0.0002,2]
[388590421,1759246321209,-500.0,0.0002,2]
[388590422,1759246321218,-1373.24,0.0002,2]
[388590423,1759246321228,-500.0,0.0002,2]
[388590424,1759246321238,-1739.88,0.0002,2]
[388590425,1759246321247,-500.0,0.0002,2]
[388590426,1759246321257,-2249.95,0.0002,2]
[388590427,1759246321266,-3071.32,0.0002,2]
[388590428,1759246321276,-2082.41,0.0002,2]
[388590429,1759246321285,-500.0,0.0002,2]
[388590430,1759246321295,-1629.45,0.0002,2]
[388590431,1759246321304,-3668.68,0.0002,2]
[388590432,1759246321313,-3762.23,0.0002,2]
[388590433,1759246321323,-3134.62,0.0002,2]
[388590434,1759246321336,-500.0,0.0002,2]
[388590435,1759246321346,-636.82,0.0002,2]
[388590436,1759246321355,-3306.06,0.0002,2]
[388590437,1759246321365,-337.639549,0.0002,2]
[388590438,1759246321378,-612.9,0.0002,2]
[388590439,1759246321388,-500.0,0.0002,2]
[388590440,1759246321398,-500.0,0.0002,2]
[388590441,1759246321408,-500.0,0.0002,2]
[388590442,1759246321418,-964.22,0.0002,2]
[388590443,1759246321428,-3545.68,0.0002,2]
[388590444,1759246321439,-18778.46,0.0002,2]
[388590445,1759246321448,-1239.87,0.0002,2]
[388590446,1759246321459,-500.0,0.0002,2]
[388590447,1759246321468,-4476.62,0.0002,2]
[388590448,1759246321477,-3480.69,0.0002,2]
[388590449,1759246321486,-2560.24,0.0002,2]
[388590450,1759246321496,-4332.59,0.0002,2]
[388590451,1759246321505,-500.0,0.0002,2]
[388590452,1759246321514,-1324.76,0.0002,2]
[388590453,1759246321523,-3046.09,0.0002,2]
[388590454,1759246321533,-500.0,0.0002,2]
[388590455,1759246321542,-3894.44,0.0002,2]
[388590456,1759246321552,-5206.27,0.0002,2]
[388590457,1759246321561,-915.79,0.0002,2]
[388590458,1759246321570,-4126.68,0.0002,2]
[388590459,1759246321580,-10311.53,0.0002,2]
[388590460,1759246321724,-500.0,0.0002,2]
[388590461,1759246321736,-5602.77,0.0002,2]
[388590462,1759246321746,-500.0,0.0002,2]
[388590463,1759246321757,-1282.5,0.0002,2]
[388590464,1759246321767,-500.0,0.0002,2]
[388590465,1759246321776,-500.0,0.0002,2]
[388590466,1759246321786,-3833.9,0.0002,2]
[388590467,1759246321796,-5037.2,0.0002,2]
[388590468,1759246321806,-3942.29,0.0002,2]
[388590469,1759246321815,-500.0,0.0002,2]
[388590470,1759246321825,-703.44,0.0002,2]
[388590471,1759246321835,-4837.09,0.0002,2]
[388590472,1759246321844,-500.0,0.0002,2]
[388590473,1759246321853,-500.0,0.0002,2]
[388590474,1759246321864,-3222.19,0.0002,2]
[388590475,1759246321874,-3184.79,0.0002,2]
[388590476,1759246321883,-5309.29,0.0002,2]
[388590477,1759246321893,-3202.95,0.0002,2]
[388590478,1759246321903,-500.0,0.0002,2]
[388590479,1759246321914,-500.0,0.0002,2]
[388590480,1759246321925,-1568.57,0.0002,2]
[388590481,1759246321936,-1844.88,0.0002,2]
[388590482,1759246321946,-7963.67,0.0002,2]
[388590483,1759246321956,-721.68,0.0002,2]
[388590484,1759246321967,-7321.33,0.0002,2]
[388590485,1759246321976,-810.92,0.0002,2]
[388590486,1759246321986,-557.63,0.0002,2]
[388590487,1759246321996,-3637.94,0.0002,2]
[388590488,1759246322005,-1289.42,0.0002,2]
[388590489,1759246322015,-4314.6,0.0002,2]
[388590490,1759246322024,-2252.6,0.0002,2]
[388590491,1759246322034,-500.0,0.0002,2]
[388590492,1759246322045,-6308.86,0.0002,2]
[388590493,1759246322054,-500.0,0.0002,2]
[388590494,1759246322064,-500.0,0.0002,2]
[388590495,1759246322073,-701.55,0.0002,2]
[388590496,1759246322083,-4217.23,0.0002,2]
[388590497,1759246322092,-2853.18,0.0002,2]
[388590498,1759246322102,-500.0,0.0002,2]
[388590499,1759246322111,-500.0,0.0002,2]
[388590500,1759246322122,-2067.5,0.0002,2]
[388590501,1759246322132,-3408.13,0.0002,2]
[388590502,1759246322143,-9687.01,0.0002,2]
[388590503,1759246322153,-4433.48,0.0002,2]
[388590504,1759246322163,-5575.77,0.0002,2]
[388590505,1759246322173,-3582.51,0.0002,2]
[388590506,1759246322183,-2444.13,0.0002,2]
[388590507,1759246322193,-814.25,0.0002,2]
[388590508,1759246322203,-1324.63,0.0002,2]
[388590509,1759246322213,-2884.89224938,0.0002,7]
[388590510,1759246322222,-500.0,0.0002,2]
[388590511,1759246322232,-3104.67,0.0002,2]
[388590512,1759246322243,-2971.34,0.0002,2]
[388590513,1759246322253,-11427.76,0.0002,2]
[388590514,1759246322262,-500.0,0.0002,2]
[388590515,1759246322272,-500.0,0.0002,2]
[388590516,1759246322282,-4088.09,0.0002,2]
[388590517,1759246322292,-791.86,0.0002,2]
[388590518,1759246322302,-500.0,0.0002,2]
[388590519,1759246322312,-818.99,0.0002,2]
[388590520,1759246322322,-5601.94,0.0002,2]
[388590521,1759246322332,-3178.75,0.0002,2]
[388590522,1759246322345,-500.0,0.0002,2]
[388590523,1759246322355,-500.0,0.0002,2]
[388590524,1759246322365,-3428.1,0.0002,2]
[388590525,1759246322375,-812.27,0.0002,2]
[388590526,1759246322385,-854.016184,0.0002,2]
[388590527,1759246322395,-500.0,0.0002,2]
[388590528,1759246322404,-2009.05,0.0002,2]
[388590529,1759246322414,-2583.72,0.0002,2]
[388590530,1759246322424,-2100.28,0.0002,2]
[388590531,1759246322440,-3180.64,0.0002,2]
[388590532,1759246322450,-731.087656,0.0002,2]
[388590533,1759246322463,-3259.44,0.0002,2]
[388590534,1759246322474,-4655.15,0.0002,2]
[388590535,1759246322484,-1264.61,0.0002,2]
[388590536,1759246322494,-2065.22,0.0002,2]
[388590537,1759246322505,-500.0,0.0002,2]
[388590538,1759246322515,-500.0,0.0002,2]
[388590539,1759246322525,-1074.54,0.0002,2]
[388590540,1759246322535,-500.0,0.0002,2]
[388590541,1759246322546,-2292.66,0.0002,2]
[388590542,1759246322559,-737.86,0.0002,2]
[388590543,1759246322569,-3708.48,0.0002,2]
[388590544,1759246322579,-4093.1,0.0002,2]
[388590545,1759246322589,-634.55,0.0002,2]
[388590546,1759246322600,-3228.48,0.0002,2]
[388590547,1759246322618,-500.0,0.0002,2]
[388590548,1759246322629,-673.51,0.0002,2]
[388590549,1759246322639,-949.13,0.0002,2]
[388590550,1759246322650,-500.0,0.0002,2]
[388590551,1759246322659,-3104.32,0.0002,2]
[388590552,1759246322669,-500.0,0.0002,2]
[388590553,1759246322679,-8635.78,0.0002,2]
[388590554,1759246322688,-5292.52,0.0002,2]
[388590555,1759246322698,-3127.17,0.0002,2]
[388590556,1759246322708,-1196.77,0.0002,2]
[388590557,1759246322718,-2288.45,0.0002,2]
[388590558,1759246322728,-1781.58,0.0002,2]
[388590559,1759246322737,-494.58617956,0.0002,2]
[388590560,1759246322748,-2737.98,0.0002,2]
[388590561,1759246322759,-500.0,0.0002,2]
[388590562,1759246322769,-4544.53,0.0002,2]
[388590563,1759246322779,-500.0,0.0002,2]
[388590564,1759246322790,-827.76,0.0002,2]
[388590565,1759246322800,-2797.9,0.0002,2]
[388590566,1759246322810,-9263.16,0.0002,2]
[388590567,1759246322820,-4494.67,0.0002,2]
[388590568,1759246322830,-534.28467081,0.0002,2]
[388590569,1759246322840,-824.01,0.0002,2]
[388590570,1759246322854,-6531.02,0.0002,2]
[388590571,1759246322864,-8791.84,0.0002,2]
[388590572,1759246322877,-952.81,0.0002,2]
[388590573,1759246322888,-500.0,0.0002,2]
[388590574,1759246322899,-500.0,0.0002,2]
[388590575,1759246322909,-500.0,0.0002,2]
[388590576,1759246322921,-500.0,0.0002,2]
[388590577,1759246322931,-2577.74,0.0002,2]
[388590578,1759246322942,-5040.71,0.0002,2]
[388590579,1759246322952,-650.4,0.0002,2]
[388590580,1759246322963,-623.3,0.0002,2]
[388590581,1759246322973,-3264.65,0.0002,2]
[388590582,1759246322983,-500.0,0.0002,2]
[388590583,1759246322993,-500.0,0.0002,2]
[388590584,1759246323003,-7688.96,0.0002,2]
[388590585,1759246323014,-2676.52,0.0002,2]
[388590586,1759246323024,-2401.46,0.0002,2]
[388590587,1759246323035,-2415.47,0.0002,2]
[388590588,1759246323045,-2841.3,0.0002,2]
[388590589,1759246323055,-1043.47,0.0002,2]
[388590590,1759246323065,-500.0,0.0002,2]
[388590591,1759246323075,-500.0,0.0002,2]
[388590592,1759246323085,-1304.88,0.0002,2]
[388590593,1759246323095,-500.0,0.0002,2]
[388590594,1759246323106,-500.0,0.0002,2]
[388590595,1759246323118,-587.2,0.0002,2]
[388590596,1759246323128,-2326.48,0.0002,2]
[388590597,1759246323139,-500.0,0.0002,2]
[388590598,1759246323150,-19914.23,0.0002,2]
[388590599,1759246323161,-682.89,0.0002,2]
[388590600,1759246323172,-500.0,0.0002,2]
[388590601,1759246323183,-500.0,0.0002,2]
[388590602,1759246323193,-835.76,0.0002,2]
[388590603,1759246323204,-6660.32,0.0002,2]
[388590604,1759246323215,-500.0,0.0002,2]
[388590605,1759246323226,-2723.14,0.0002,2]
[388590606,1759246323236,-2954.04,0.0002,2]
[388590607,1759246323247,-530.75,0.0002,2]
[388590608,1759246323257,-500.0,0.0002,2]
[388590609,1759246323271,-379.54,0.0002,2]
[388590610,1759246323282,-500.0,0.0002,2]
[388590611,1759246323292,-500.0,0.0002,2]
[388590612,1759246323304,-500.0,0.0002,2]
[388590613,1759246323314,-3047.16,0.0002,2]
[388590614,1759246323325,-500.0,0.0002,2]
[388590615,1759246323338,-500.0,0.0002,2]
[388590616,1759246323348,-3385.36,0.0002,2]
[388590617,1759246323360,-2622.66,0.0002,2]
[388590618,1759246323372,-500.0,0.0002,2]
[388590619,1759246323383,-2609.92,0.0002,2]
[388590620,1759246323394,-511.59049749,0.0002,2]
[388590621,1759246323404,-7942.2,0.0002,2]
[388590622,1759246323416,-739.07,0.0002,2]
[388590623,1759246323428,-9633.86,0.0002,2]
[388590624,1759246323438,-334.43721544,0.0002,2]
[388590625,1759246323449,-835.53,0.0002,2]
[388590626,1759246323459,-500.0,0.0002,2]
[388590627,1759246323469,-3050.74,0.0002,2]
[388590628,1759246323479,-1600.14,0.0002,2]
[388590629,1759246323490,-500.0,0.0002,2]
[388590630,1759246323501,-1420.36,0.0002,2]
[388590631,1759246323513,-500.0,0.0002,2]
[388590632,1759246323523,-500.0,0.0002,2]
[388590633,1759246323533,-1466.9,0.0002,2]
[388590634,1759246323543,-4685.47,0.0002,2]
[388590635,1759246323554,-6705.33,0.0002,2]
[388590636,1759246323567,-22451.0,0.0002,2]
[388590637,1759246323578,-2318.18,0.0002,2]
[388590638,1759246323588,-1047.92,0.0002,2]
[388590639,1759246323598,-1759.63,0.0002,2]
[388590640,1759246323608,-4834.6,0.0002,2]
[388590641,1759246323620,-2716.66,0.0002,2]
[388590642,1759246323630,-500.0,0.0002,2]
[388590643,1759246323640,-552.85,0.0002,2]
[388590644,1759246323650,-200.89997758,0.0002,2]
[388590645,1759246323661,-500.0,0.0002,2]
[388590646,1759246323671,-500.0,0.0002,2]
[388590647,1759246323681,-500.0,0.0002,2]
[388590648,1759246323691,-2583.5,0.0002,2]
[388590649,1759246323701,-500.0,0.0002,2]
[388590650,1759246323710,-1715.07,0.0002,2]
[388590651,1759246323720,-1859.68,0.0002,2]
[388590652,1759246323730,-696.79,0.0002,2]
[388590653,1759246323739,-3571.8,0.0002,2]
[388590654,1759246323749,-4639.88,0.0002,2]
[388590655,1759246323759,-4719.84,0.0002,2]
[388590656,1759246323769,-2068.03,0.0002,2]
[388590657,1759246323780,-4651.63,0.0002,2]
[388590658,1759246323790,-19762.18,0.0002,2]
[388590659,1759246323801,-500.0,0.0002,2]
[388590660,1759246323811,-500.0,0.0002,2]
[388590661,1759246323821,-5357.55,0.0002,2]
[388590662,1759246323830,-500.0,0.0002,2]
[388590663,1759246323840,-851.55,0.0002,2]
[388590664,1759246323850,-500.0,0.0002,2]
[388590665,1759246323859,-10908.21,0.0002,2]
[388590666,1759246323871,-2799.17,0.0002,2]
[388590667,1759246323882,-500.0,0.0002,2]
[388590668,1759246323891,-500.0,0.0002,2]
[388590669,1759246323901,-4919.51,0.0002,2]
[388590670,1759246323911,-850.83,0.0002,2]
[388590671,1759246323921,-9933.01,0.0002,2]
[388590672,1759246323931,-4000.0,0.0002,4]
[388590673,1759246323941,-3438.86,0.0002,2]
[388590674,1759246323950,-500.0,0.0002,2]
[388590675,1759246323960,-3522.9,0.0002,2]
[388590676,1759246323969,-2443.38,0.0002,2]
[388590677,1759246324476,-500.0,0.0002,2]
[388590678,1759246324488,-739.44,0.0002,2]
[388590679,1759246324498,-7000.6,0.0002,2]
[388590680,1759246324509,-5344.2,0.0002,2]
[388590681,1759246324519,-4531.41,0.0002,2]
[388590682,1759246324529,-636.3,0.0002,2]
[388590683,1759246324539,-964.45,0.0002,2]
[388590684,1759246324548,-500.0,0.0002,2]
[388590685,1759246324558,-500.0,0.0002,2]
[388590686,1759246324567,-500.0,0.0002,2]
[388590687,1759246324577,-562.11,0.0002,2]
[388590688,1759246324586,-1166.74,0.0002,2]
[388590689,1759246324596,-500.0,0.0002,2]
[388590690,1759246324606,-4294.47,0.0002,2]
[388590691,1759246324616,-586.73,0.0002,2]
[388590692,1759246324627,-3703.76,0.0002,2]
[388590693,1759246324637,-562.29,0.0002,2]
[388590694,1759246324647,-1838.2,0.0002,2]
[388590695,1759246324656,-500.0,0.0002,2]
[388590696,1759246324666,-1106.5,0.0002,2]
[388590697,1759246324676,-504.17,0.0002,2]
[388590698,1759246324685,-682.43,0.0002,2]
[388590699,1759246324694,-500.0,0.0002,2]
[388590700,1759246324704,-897.5,0.0002,2]
[388590701,1759246324713,-500.0,0.0002,2]
[388590702,1759246324723,-500.0,0.0002,2]
[388590703,1759246324732,-3826.94,0.0002,2]
[388590704,1759246324743,-500.0,0.0002,2]
[388590705,1759246324753,-500.0,0.0002,2]
[388590706,1759246324763,-500.0,0.0002,2]
[388590707,1759246324773,-1643.92,0.0002,2]
[388590708,1759246324783,-904.44,0.0002,2]
[388590709,1759246324792,-500.0,0.0002,2]
[388590710,1759246324802,-3504.09,0.0002,2]
[388590711,1759246324812,-5450.69,0.0002,2]
[388590712,1759246324822,-500.0,0.0002,2]
[388590713,1759246324832,-516.07,0.0002,2]
[388590714,1759246324842,-1640.77,0.0002,2]
[388590715,1759246324853,-699.69,0.0002,2]
[388590716,1759246324863,-4288.75,0.0002,2]
[388590717,1759246324874,-585.12,0.0002,2]
[388590718,1759246324883,-1534.31,0.0002,2]
[388590719,1759246324894,-940.51,0.0002,2]